fUSD/lending_fUSD_20260116
["ID","MTS","AMOUNT","RATE_DAILY","PERIOD"]
[402164179,1768554638985,-575.26,0.0003589,10]
[402164181,1768554638994,-500.0,0.0003589,10]
[402164182,1768554639003,-500.0,0.0003589,10]
[402164184,1768554639012,-500.0,0.0003589,10]
[402164185,1768554639021,-1291.51,0.0003589,10]
[402164186,1768554639030,-500.0,0.0003589,10]
[402164187,1768554639039,-500.0,0.0003589,10]
[402164188,1768554639049,-500.0,0.0003589,10]
[402164189,1768554639058,-500.0,0.0003589,10]
[402164190,1768554639067,-500.0,0.0003589,10]
[402164191,1768554639077,-500.0,0.0003589,10]
[402164192,1768554639085,-500.0,0.0003589,10]
[402164193,1768554639095,-500.0,0.0003589,10]
[402164194,1768554639104,-500.0,0.0003589,10]
[402164195,1768554639113,-500.0,0.0003589,10]
[402164196,1768554639123,-500.0,0.0003589,10]
[402164197,1768554639132,-500.0,0.0003589,10]
[402164198,1768554639142,-500.0,0.0003589,10]
[402164199,1768554639151,-549.0,0.0003589,10]
[402164200,1768554639160,-500.0,0.0003589,10]
[402164201,1768554639169,-500.0,0.0003589,10]
[402164202,1768554639178,-500.0,0.0003589,10]
[402164203,1768554639187,-506.35,0.0003589,10]
[402164204,1768554639196,-500.0,0.0003589,10]
[402164205,1768554639205,-500.0,0.0003589,10]
[402164206,1768554639215,-1501.73,0.0003589,10]
[402164207,1768554639224,-500.0,0.0003589,10]
[402164208,1768554639234,-500.0,0.0003589,10]
[402164209,1768554639244,-500.0,0.0003589,10]
[402164210,1768554639253,-500.0,0.0003589,10]
[402164211,1768554639262,-500.0,0.0003589,10]
[402164212,1768554639271,-500.0,0.0003589,10]
[402164213,1768554639280,-500.0,0.0003589,10]
[402164214,1768554639289,-500.0,0.0003589,10]
[402164215,1768554639298,-500.0,0.0003589,10]
[402164216,1768554639308,-621.36663402,0.0003589,10]
[402164217,1768554639317,-741.84,0.0003589,10]
[402164218,1768554639326,-509.52,0.0003589,10]
[402164219,1768554639335,-500.0,0.0003589,10]
[402164220,1768554639345,-500.0,0.0003589,10]
[402164221,1768554639357,-500.0,0.0003589,10]
[402164222,1768554639366,-500.0,0.0003589,10]
[402164223,1768554639376,-500.0,0.0003589,10]
[402164224,1768554639385,-500.0,0.0003589,10]
[402164225,1768554639394,-500.0,0.0003589,10]
[402164226,1768554639404,-885.74,0.0003589,10]
[402164227,1768554639414,-500.0,0.0003589,10]
[402164228,1768554639423,-519.56,0.0003589,10]
[402164229,1768554639432,-500.0,0.0003589,10]
[402164230,1768554639441,-500.0,0.0003589,10]
[402164231,1768554639450,-500.0,0.0003589,10]
[402164232,1768554639459,-500.0,0.0003589,10]
[402164233,1768554639469,-500.0,0.0003589,10]
[402164234,1768554639479,-500.0,0.0003589,10]
[402164235,1768554639488,-500.0,0.0003589,10]
[402164236,1768554639499,-500.0,0.0003589,10]
[402164237,1768554639508,-500.0,0.0003589,10]
[402164238,1768554639518,-233.55245146,0.0003589,10]
[402164239,1768554639527,-500.0,0.0003589,10]
[402164240,1768554639536,-500.0,0.0003589,10]
[402164241,1768554639546,-500.0,0.0003589,10]
[402164242,1768554639555,-500.0,0.0003589,10]
[402164243,1768554639565,-500.0,0.0003589,10]
[402164244,1768554639573,-559.83641985,0.0003589,10]
[402164245,1768554639583,-500.0,0.0003589,10]
[402164246,1768554639593,-727.78,0.0003589,10]
[402164247,1768554639602,-500.0,0.0003589,10]
[402164248,1768554639612,-500.0,0.0003589,10]
[402164249,1768554639621,-549.31597657,0.0003589,10]
[402164250,1768554639631,-500.0,0.0003589,10]
[402164251,1768554639641,-500.0,0.0003589,10]
[402164252,1768554639651,-500.0,0.0003589,10]
[402164253,1768554639661,-500.0,0.0003589,10]
[402164254,1768554639671,-500.0,0.0003589,10]
[402164255,1768554639682,-500.0,0.0003589,10]
[402164256,1768554639693,-848.43,0.0003589,10]
[402164257,1768554639702,-500.0,0.0003589,10]
[402164258,1768554639711,-501.91430747,0.0003589,10]
[402164259,1768554639720,-255.94299414,0.0003589,10]
[402164260,1768554639729,-1017.01,0.0003589,10]
[402164261,1768554639738,-729.54,0.0003589,10]
[402164262,1768554639747,-580.03,0.0003589,10]
[402164263,1768554639756,-500.0,0.0003589,10]
[402164264,1768554639765,-500.0,0.0003589,10]
[402164265,1768554639774,-1258.72,0.0003589,10]
[402164266,1768554639784,-500.0,0.0003589,10]
[402164267,1768554639794,-1266.92,0.0003589,10]
[402164268,1768554639803,-500.0,0.0003589,10]
[402164269,1768554639812,-580.6176654,0.0003589,10]
[402164270,1768554639821,-756.23,0.0003589,10]
[402164271,1768554639830,-593.31,0.0003589,10]
[402164272,1768554639839,-500.0,0.0003589,10]
[402164273,1768554639848,-332.38147142,0.0003589,10]
[402164274,1768554639857,-880.73,0.0003589,10]
[402164275,1768554639866,-500.0,0.0003589,10]
[402164276,1768554639875,-697.24,0.0003589,14]
[402164277,1768554639885,-500.0,0.0003589,10]
[402164278,1768554639897,-518.69375911,0.0003589,10]
[402164279,1768554639906,-500.0,0.0003589,10]
[402164280,1768554639915,-500.0,0.0003589,10]
[402164281,1768554639925,-1006.61,0.0003589,10]
[402164282,1768554639936,-502.24,0.0003589,10]
[402164283,1768554639946,-500.0,0.0003589,10]
[402164284,1768554639955,-664.24,0.0003589,10]
[402164285,1768554639966,-500.0,0.0003589,10]
[402164286,1768554639978,-500.0,0.0003589,10]
[402164287,1768554639988,-500.0,0.0003589,10]
[402164288,1768554639998,-566.31,0.0003589,10]
[402164289,1768554640007,-500.0,0.0003589,10]
[402164290,1768554640018,-500.0,0.0003589,10]
[402164291,1768554640029,-595.93,0.0003589,10]
[402164292,1768554640039,-500.0,0.0003589,10]
[402164293,1768554640048,-500.0,0.0003589,10]
[402164294,1768554640058,-869.94,0.0003589,10]
[402164295,1768554640067,-512.8563347,0.0003589,10]
[402164296,1768554640076,-500.0,0.0003589,10]
[402164297,1768554640085,-500.0,0.0003589,10]
[402164298,1768554640094,-500.0,0.0003589,10]
[402164299,1768554640103,-500.0,0.0003589,10]
[402164300,1768554640112,-662.16,0.0003589,10]
[402164301,1768554640120,-500.0,0.0003589,10]
[402164302,1768554640130,-500.0,0.0003589,10]
[402164303,1768554640140,-500.0,0.0003589,10]
[402164304,1768554640149,-505.42905083,0.0003589,10]
[402164305,1768554640159,-500.0,0.0003589,10]
[402164306,1768554640168,-500.0,0.0003589,10]
[402164307,1768554640177,-506.11881529,0.0003589,10]
[402164308,1768554640187,-998.59,0.0003589,10]
[402164309,1768554640196,-500.0,0.0003589,10]
[402164310,1768554640205,-500.0,0.0003589,10]
[402164311,1768554640214,-1840.96,0.0003589,10]
[402164313,1768554640223,-500.0,0.0003589,10]
[402164314,1768554640232,-500.0,0.0003589,2]
[402164315,1768554640241,-500.0,0.0003589,2]
[402164316,1768554640250,-500.0,0.0003589,10]
[402164317,1768554640259,-500.0,0.0003589,10]
[402164318,1768554640268,-500.0,0.0003589,10]
[402164319,1768554640276,-500.0,0.0003589,10]
[402164320,1768554640285,-500.0,0.0003589,10]
[402164321,1768554640294,-500.0,0.0003589,10]
[402164322,1768554640303,-585.32,0.0003589,10]
[402164323,1768554640312,-500.0,0.0003589,10]
[402164324,1768554640321,-663.4,0.0003589,10]
[402164325,1768554640330,-500.0,0.0003589,10]
[402164326,1768554640339,-2015.5,0.0003589,10]
[402164327,1768554640348,-500.0,0.0003589,10]
[402164328,1768554640358,-1359.87,0.0003589,2]
[402164329,1768554640367,-500.0,0.0003589,10]
[402164330,1768554640376,-500.0,0.0003589,10]
[402164331,1768554640385,-500.0,0.0003589,10]
[402164332,1768554640394,-946.14,0.0003589,10]
[402164333,1768554640402,-500.0,0.0003589,10]
[402164334,1768554640411,-1755.6,0.0003589,10]
[402164335,1768554640420,-500.0,0.0003589,10]
[402164336,1768554640429,-2903.82,0.0003589,10]
[402164337,1768554640438,-500.0,0.0003589,10]
[402164338,1768554640448,-500.0,0.0003589,10]
[402164339,1768554640456,-500.0,0.0003589,10]
[402164340,1768554640465,-500.0,0.0003589,10]
[402164341,1768554640475,-504.4751123,0.0003589,10]
[402164342,1768554640484,-1010.54,0.0003589,10]
[402164343,1768554640493,-500.0,0.0003589,10]
[402164344,1768554640502,-500.0,0.0003589,5]
[402164345,1768554640510,-500.0,0.0003589,10]
[402164346,1768554640519,-500.0,0.0003589,10]
[402164347,1768554640528,-500.0,0.0003589,10]
[402164348,1768554640537,-500.0,0.0003589,10]
[402164349,1768554640546,-518.60863101,0.0003589,10]
[402164350,1768554640555,-500.0,0.0003589,10]
[402164351,1768554640563,-500.0,0.0003589,10]
[402164352,1768554640573,-1544.59,0.0003589,10]
[402164353,1768554640581,-540.76,0.0003589,10]
[402164354,1768554640590,-500.0,0.0003589,10]
[402164355,1768554640599,-513.93930086,0.0003589,10]
[402164356,1768554640607,-500.0,0.0003589,10]
[402164357,1768554640616,-500.0,0.0003589,10]
[402164358,1768554640625,-856.68,0.0003589,10]
[402164359,1768554640634,-500.0,0.0003589,10]
[402164360,1768554640643,-500.0,0.0003589,10]
[402164361,1768554640653,-1189.73,0.0003589,10]
[402164362,1768554640662,-500.0,0.0003589,10]
[402164363,1768554640671,-1106.09,0.0003589,10]
[402164364,1768554640680,-696.2,0.0003589,10]
[402164365,1768554640689,-500.0,0.0003589,10]
[402164366,1768554640698,-500.0,0.0003589,10]
[402164367,1768554640707,-756.4,0.0003589,10]
[402164368,1768554640716,-791.05,0.0003589,10]
[402164369,1768554640725,-467.75,0.0003589,10]
[402164370,1768554640734,-500.0,0.0003589,10]
[402164371,1768554640743,-1125.07,0.0003589,10]
[402164372,1768554640752,-500.0,0.0003589,10]
[402164373,1768554640761,-500.0,0.0003589,10]
[402164374,1768554640769,-3402.81,0.0003589,10]
[402164375,1768554640779,-491.04958733,0.0003589,10]
[402164376,1768554640788,-500.0,0.0003589,10]
[402164377,1768554640797,-500.0,0.0003589,10]
[402164379,1768554640807,-500.0,0.0003589,10]
[402164380,1768554640816,-500.0,0.0003589,10]
[402164381,1768554640825,-500.0,0.0003589,10]
[402164382,1768554640834,-513.47,0.0003589,10]
[402164383,1768554640843,-500.0,0.0003589,10]
[402164384,1768554640851,-500.0,0.0003589,10]
[402164385,1768554640861,-500.0,0.0003589,10]
[402164386,1768554640870,-500.0,0.0003589,10]
[402164387,1768554640880,-500.0,0.0003589,10]
[402164388,1768554640892,-500.0,0.0003589,10]
[402164389,1768554640901,-1030.27,0.0003589,10]
[402164390,1768554640911,-500.0,0.0003589,10]
[402164391,1768554640920,-500.0,0.0003589,10]
[402164392,1768554640930,-807.46,0.0003589,10]
[402164393,1768554640940,-597.93,0.0003589,10]
[402164394,1768554640949,-1273.22,0.0003589,10]
[402164395,1768554640959,-500.0,0.0003589,10]
[402164396,1768554640968,-500.0,0.0003589,10]
[402164397,1768554640977,-567.92,0.0003589,10]
[402164398,1768554640986,-500.0,0.0003589,10]
[402164399,1768554640996,-500.0,0.0003589,10]
[402164400,1768554641005,-500.0,0.0003589,10]
[402164401,1768554641014,-500.46,0.0003589,10]
[402164402,1768554641023,-500.0,0.0003589,10]
[402164403,1768554641033,-500.0,0.0003589,10]
[402164404,1768554641042,-596.21066146,0.0003589,10]
[402164405,1768554641051,-1019.5,0.0003589,10]
[402164406,1768554641060,-2593.39,0.0003589,10]
[402164407,1768554641069,-500.0,0.0003589,10]
[402164408,1768554641078,-753.93,0.0003589,10]
[402164409,1768554641088,-500.0,0.0003589,10]
[402164410,1768554641097,-500.0,0.0003589,10]
[402164411,1768554641107,-500.0,0.0003589,2]
[402164412,1768554641115,-420.39415704,0.0003589,10]
[402164413,1768554641125,-1514.25,0.0003589,10]
[402164414,1768554641134,-500.0,0.0003589,10]
[402164415,1768554641143,-500.0,0.0003589,10]
[402164416,1768554641153,-854.1,0.0003589,10]
[402164417,1768554641162,-573.98,0.0003589,10]
[402164418,1768554641172,-5792.45,0.0003589,10]
[402164419,1768554641182,-600.0,0.0003589,30]
[402164420,1768554641192,-652.04129065,0.00035976,63]
[402164421,1768554641201,-435.68881554,0.00036029,2]
[402164422,1768554641211,-268.53124077,0.00036064,10]
[402164423,1768554641220,-500.0,0.00036075,30]
[402164424,1768554641229,-200.0,0.00036087,2]
[402164425,1768554641239,-200.0,0.00036087,2]
[402164427,1768554641247,-200.0,0.00036087,2]
[402164428,1768554641256,-200.0,0.00036087,2]
[402164429,1768554641265,-200.0,0.00036087,2]
[402164430,1768554641275,-200.0,0.00036087,2]
[402164431,1768554641285,-200.0,0.00036087,2]
[402164432,1768554641294,-200.0,0.00036087,2]
[402164433,1768554641303,-200.0,0.00036087,2]
[402164434,1768554641312,-200.0,0.00036087,2]
[402164435,1768554641322,-200.0,0.00036087,2]
[402164436,1768554641331,-200.0,0.00036087,2]
[402164437,1768554641340,-200.0,0.00036087,2]
[402164438,1768554641349,-200.0,0.00036087,2]
[402164439,1768554641359,-200.0,0.00036087,2]
[402164440,1768554641367,-200.0,0.00036087,2]
[402164441,1768554641377,-200.0,0.00036087,2]
[402164442,1768554641386,-200.0,0.00036087,2]
[402164443,1768554641395,-200.0,0.00036087,2]
[402164444,1768554641404,-200.0,0.00036087,2]
[402164445,1768554641414,-200.0,0.00036087,2]
[402164446,1768554641423,-200.0,0.00036087,2]
[402164447,1768554641432,-200.0,0.00036087,2]
[402164448,1768554641441,-200.0,0.00036087,2]
[402164449,1768554641451,-200.0,0.00036087,2]
[402164450,1768554641461,-200.0,0.00036087,2]
[402164451,1768554641471,-200.0,0.00036087,2]
[402164452,1768554641479,-200.0,0.00036087,2]
[402164453,1768554641489,-200.0,0.00036087,2]
[402164454,1768554641498,-200.0,0.00036087,2]
[402164455,1768554641507,-200.0,0.00036087,2]
[402164456,1768554641516,-200.0,0.00036087,2]
[402164457,1768554641525,-200.0,0.00036087,2]
[402164458,1768554641534,-200.0,0.00036087,2]
[402164459,1768554641543,-200.0,0.00036087,2]
[402164460,1768554641552,-200.0,0.00036087,2]
[402164461,1768554641561,-178.0,0.00036087,2]
[402164462,1768554641570,-261.19993748,0.00036163,20]
[402164463,1768554641579,-500.0,0.00036164,2]
[402164464,1768554641588,-6419.95329523,0.00036164,10]
[402164465,1768554641597,-500.0,0.00036164,10]
[402164466,1768554641606,-500.0,0.00036164,10]
[402164467,1768554641616,-564.60575279,0.00036164,10]
[402164468,1768554641625,-500.0,0.00036164,10]
[402164469,1768554641635,-484.50936953,0.00036164,10]
[402164470,1768554641644,-500.0,0.00036164,10]
[402164471,1768554641654,-1055.14,0.00036164,10]
[402164472,1768554641663,-500.0,0.00036164,10]
[402164473,1768554641672,-161.6280417,0.00036164,10]
[402164474,1768554641681,-500.0,0.00036164,10]
[402164475,1768554641690,-500.0,0.00036164,10]
[402164476,1768554641699,-500.0,0.00036164,10]
[402164477,1768554641708,-414.88987842,0.00036164,10]
[402164478,1768554641718,-500.0,0.00036164,10]
[402164479,1768554641727,-1291.51,0.00036164,10]
[402164480,1768554641736,-500.0,0.00036164,10]
[402164481,1768554641745,-526.58091371,0.00036164,10]
[402164482,1768554641754,-500.0,0.00036164,10]
[402164483,1768554641763,-510.96056983,0.00036164,10]
[402164484,1768554641772,-500.0,0.00036164,10]
[402164485,1768554641781,-500.0,0.00036164,10]
[402164486,1768554641790,-500.0,0.00036164,10]
[402164487,1768554641799,-521.7764103,0.00036164,10]
[402164488,1768554641808,-500.0,0.00036164,10]
[402164489,1768554641817,-269.66488846,0.00036164,10]
[402164490,1768554641827,-500.0,0.00036164,10]
[402164491,1768554641836,-500.0,0.00036164,10]
[402164492,1768554641845,-500.0,0.00036164,10]
[402164493,1768554641854,-549.0,0.00036164,10]
[402164494,1768554641863,-500.0,0.00036164,10]
[402164495,1768554641872,-500.0,0.00036164,10]
[402164496,1768554641882,-500.0,0.00036164,10]
[402164497,1768554641894,-506.35,0.00036164,10]
[402164498,1768554641904,-500.0,0.00036164,10]
[402164499,1768554641913,-500.0,0.00036164,10]
[402164500,1768554641923,-1501.73,0.00036164,10]
[402164501,1768554641932,-500.0,0.00036164,10]
[402164502,1768554641941,-442.0449762,0.00036164,10]
[402164503,1768554641951,-500.0,0.00036164,10]
[402164504,1768554641961,-500.0,0.00036164,10]
[402164505,1768554641970,-500.0,0.00036164,10]
[402164506,1768554641980,-500.0,0.00036164,10]
[402164507,1768554641989,-500.0,0.00036164,10]
[402164508,1768554642001,-500.0,0.00036164,10]
[402164509,1768554642010,-500.0,0.00036164,10]
[402164510,1768554642019,-741.84,0.00036164,10]
[402164511,1768554642028,-509.52,0.00036164,10]
[402164512,1768554642038,-500.0,0.00036164,10]
[402164513,1768554642048,-506.921254,0.00036164,10]
[402164514,1768554642057,-500.0,0.00036164,10]
[402164515,1768554642067,-504.07087004,0.00036164,10]
[402164516,1768554642076,-500.0,0.00036164,10]
[402164517,1768554642086,-500.0,0.00036164,10]
[402164518,1768554642094,-500.0,0.00036164,10]
[402164519,1768554642103,-885.74,0.00036164,10]
[402164520,1768554642112,-500.0,0.00036164,10]
[402164521,1768554642121,-519.56,0.00036164,10]
[402164522,1768554642130,-500.0,0.00036164,10]
[402164523,1768554642139,-500.0,0.00036164,10]
[402164524,1768554642149,-157.90922575,0.00036164,10]
[402164525,1768554642159,-500.0,0.00036164,10]
[402164526,1768554642169,-500.0,0.00036164,10]
[402164527,1768554642179,-500.0,0.00036164,10]
[402164528,1768554642188,-500.0,0.00036164,10]
[402164529,1768554642197,-500.0,0.00036164,10]
[402164530,1768554642206,-500.0,0.00036164,10]
[402164531,1768554642216,-500.0,0.00036164,10]
[402164532,1768554642226,-504.30881195,0.00036164,10]
[402164533,1768554642235,-503.12517423,0.00036164,10]
[402164534,1768554642245,-500.0,0.00036164,10]
[402164535,1768554642255,-500.0,0.00036164,10]
[402164536,1768554642264,-500.0,0.00036164,10]
[402164537,1768554642273,-727.78,0.00036164,10]
[402164538,1768554642282,-500.0,0.00036164,10]
[402164539,1768554642291,-500.0,0.00036164,10]
[402164540,1768554642301,-500.0,0.00036164,10]
[402164541,1768554642311,-307.39538537,0.00036164,10]
[402164542,1768554642321,-389.25164503,0.00036164,10]
[402164543,1768554642330,-500.0,0.00036164,10]
[402164544,1768554642339,-500.0,0.00036164,10]
[402164545,1768554642348,-500.0,0.00036164,10]
[402164546,1768554642357,-848.43,0.00036164,10]
[402164547,1768554642367,-500.0,0.00036164,10]
[402164548,1768554642376,-1017.01,0.00036164,10]
[402164549,1768554642387,-729.54,0.00036164,10]
[402164550,1768554642397,-580.03,0.00036164,10]
[402164551,1768554642406,-500.0,0.00036164,10]
[402164552,1768554642416,-500.0,0.00036164,10]
[402164553,1768554642425,-1258.72,0.00036164,10]
[402164554,1768554642434,-504.12795132,0.00036164,10]
[402164555,1768554642443,-1266.92,0.00036164,10]
[402164556,1768554642452,-500.0,0.00036164,10]
[402164557,1768554642461,-756.23,0.00036164,10]
[402164558,1768554642469,-593.31,0.00036164,10]
[402164559,1768554642491,-500.0,0.00036164,10]
[402164560,1768554642501,-880.73,0.00036164,10]
[402164561,1768554642510,-388.36128972,0.00036164,10]
[402164562,1768554642519,-697.24,0.00036164,14]
[402164563,1768554642528,-500.0,0.00036164,10]
[402164564,1768554642537,-500.0,0.00036164,10]
[402164565,1768554642546,-500.0,0.00036164,10]
[402164566,1768554642554,-1006.61,0.00036164,10]
[402164567,1768554642563,-502.24,0.00036164,10]
[402164568,1768554642572,-500.0,0.00036164,10]
[402164569,1768554642581,-664.24,0.00036164,10]
[402164570,1768554642590,-500.0,0.00036164,10]
[402164571,1768554642599,-500.0,0.00036164,10]
[402164572,1768554642607,-566.31,0.00036164,10]
[402164573,1768554642617,-500.0,0.00036164,10]
[402164574,1768554642626,-500.0,0.00036164,10]
[402164575,1768554642635,-595.93,0.00036164,10]
[402164576,1768554642644,-500.0,0.00036164,10]
[402164577,1768554642653,-500.0,0.00036164,10]
[402164578,1768554642662,-869.94,0.00036164,10]
[402164579,1768554642670,-500.0,0.00036164,10]
[402164580,1768554642679,-500.0,0.00036164,10]
[402164581,1768554642688,-500.0,0.00036164,10]
[402164582,1768554642698,-500.0,0.00036164,10]
[402164583,1768554642707,-662.16,0.00036164,10]
[402164584,1768554642716,-500.0,0.00036164,10]
[402164585,1768554642726,-500.0,0.00036164,10]
[402164586,1768554642736,-500.0,0.00036164,10]
[402164587,1768554642745,-500.0,0.00036164,10]
[402164588,1768554642755,-500.0,0.00036164,10]
[402164589,1768554642767,-998.59,0.00036164,10]
[402164590,1768554642776,-500.0,0.00036164,10]
[402164591,1768554642785,-500.0,0.00036164,10]
[402164592,1768554642796,-1840.96,0.00036164,10]
[402164593,1768554642805,-500.0,0.00036164,10]
[402164594,1768554642814,-500.0,0.00036164,2]
[402164595,1768554642823,-500.0,0.00036164,2]
[402164596,1768554642833,-500.0,0.00036164,10]
[402164597,1768554642842,-500.0,0.00036164,10]
[402164598,1768554642965,-500.0,0.00036164,10]
[402164599,1768554642976,-500.0,0.00036164,10]
[402164600,1768554642985,-500.0,0.00036164,10]
[402164601,1768554642995,-500.0,0.00036164,10]
[402164602,1768554643006,-585.32,0.00036164,10]
[402164603,1768554643016,-500.0,0.00036164,10]
[402164604,1768554643025,-663.4,0.00036164,10]
[402164605,1768554643035,-500.0,0.00036164,10]
[402164606,1768554643045,-2015.5,0.00036164,10]
[402164607,1768554643054,-500.0,0.00036164,10]
[402164608,1768554643063,-1359.87,0.00036164,2]
[402164609,1768554643072,-500.0,0.00036164,10]
[402164611,1768554643082,-500.0,0.00036164,10]
[402164612,1768554643091,-500.0,0.00036164,10]
[402164613,1768554643101,-946.14,0.00036164,10]
[402164614,1768554643111,-500.0,0.00036164,10]
[402164615,1768554643121,-1755.6,0.00036164,10]
[402164616,1768554643131,-500.0,0.00036164,10]
[402164617,1768554643141,-2903.82,0.00036164,10]
[402164618,1768554643151,-500.0,0.00036164,10]
[402164619,1768554643160,-500.0,0.00036164,10]
[402164620,1768554643170,-500.0,0.00036164,10]
[402164621,1768554643180,-500.0,0.00036164,10]
[402164622,1768554643189,-1010.54,0.00036164,10]
[402164623,1768554643200,-500.0,0.00036164,10]
[402164624,1768554643210,-500.0,0.00036164,5]
[402164625,1768554643219,-500.0,0.00036164,10]
[402164626,1768554643229,-500.0,0.00036164,10]
[402164627,1768554643238,-500.0,0.00036164,10]
[402164628,1768554643247,-500.0,0.00036164,10]
[402164629,1768554643257,-500.0,0.00036164,10]
[402164630,1768554643266,-500.0,0.00036164,10]
[402164632,1768554643276,-1544.59,0.00036164,10]
[402164634,1768554643286,-540.76,0.00036164,10]
[402164635,1768554643295,-500.0,0.00036164,10]
[402164636,1768554643304,-500.0,0.00036164,10]
[402164637,1768554643314,-500.0,0.00036164,10]
[402164638,1768554643323,-856.68,0.00036164,10]
[402164639,1768554643333,-270.74,0.00036164,10]
[402164640,1768554643343,-500.0,0.00036164,10]
[402164641,1768554643353,-1189.73,0.00036164,10]
[402164642,1768554643363,-500.0,0.00036164,10]
[402164643,1768554643372,-1106.09,0.00036164,10]
[402164644,1768554643382,-696.2,0.00036164,10]
[402164645,1768554643392,-500.0,0.00036164,10]
[402164646,1768554643401,-500.0,0.00036164,10]
[402164647,1768554643411,-756.4,0.00036164,10]
[402164648,1768554643420,-791.05,0.00036164,10]
[402164649,1768554643430,-500.0,0.00036164,10]
[402164650,1768554643439,-1125.07,0.00036164,10]
[402164651,1768554643449,-500.0,0.00036164,10]
[402164652,1768554643458,-500.0,0.00036164,10]
[402164653,1768554643468,-3402.81,0.00036164,10]
[402164654,1768554643477,-500.0,0.00036164,10]
[402164655,1768554643486,-500.0,0.00036164,10]
[402164656,1768554643496,-295.41304967,0.00036164,10]
[402164657,1768554643505,-500.0,0.00036164,10]
[402164658,1768554643515,-500.0,0.00036164,10]
[402164659,1768554643524,-513.47,0.00036164,10]
[402164660,1768554643533,-500.0,0.00036164,10]
[402164661,1768554643544,-500.0,0.00036164,10]
[402164662,1768554643553,-500.0,0.00036164,10]
[402164663,1768554643563,-151.81618846,0.00036164,10]
[402164666,1768554643785,-348.18381154,0.00036164,10]
[402164667,1768554643796,-500.0,0.00036164,10]
[402164668,1768554643806,-500.0,0.00036164,10]
[402164669,1768554643815,-13.44567547,0.00036164,10]
[402164670,1768554643837,-1016.82432453,0.00036164,10]
[402164671,1768554643853,-500.0,0.00036164,10]
[402164672,1768554643862,-500.0,0.00036164,10]
[402164673,1768554643872,-807.46,0.00036164,10]
[402164674,1768554643881,-597.93,0.00036164,10]
[402164675,1768554643894,-1273.22,0.00036164,10]
[402164676,1768554643903,-500.0,0.00036164,10]
[402164677,1768554643913,-500.0,0.00036164,10]
[402164678,1768554643922,-500.0,0.00036164,10]
[402164679,1768554643932,-500.0,0.00036164,10]
[402164680,1768554643941,-500.0,0.00036164,10]
[402164681,1768554643950,-500.46,0.00036164,10]
[402164682,1768554643960,-500.0,0.00036164,10]
[402164683,1768554643970,-500.0,0.00036164,10]
[402164684,1768554643979,-1019.5,0.00036164,10]
[402164685,1768554643989,-2593.39,0.00036164,10]
[402164686,1768554643998,-500.0,0.00036164,10]
[402164687,1768554644008,-753.93,0.00036164,10]
[402164688,1768554644018,-500.0,0.00036164,10]